[Event "28th Hit Open-A 2024"]
[Site "Nova Gorica"]
[Date "2024.01.27"]
[Round "3.31"]
[White "Mulec, Dejan"]
[Black "Atakay, Mustafa"]
[Result "0-1"]
[ECO "A80"]
[WhiteElo "1577"]
[BlackElo "1889"]
[Annotator "NA RC COMBH"]
[PlyCount "98"]
[EventDate "2024.01.22"]
[EventType "swiss"]
[EventCountry "SLO"]
[SourceTitle "playchess.com"]
[Source "ChessBase"]
[SourceQuality "1"]
[TimeControl "5400+30"]

1. d4 {[%emt 0:00:03]} f5 {[%emt 0:04:48]} 2. Bg5 {[%emt 0:00:41]} Nf6 {[%emt 0:00:19]} 3. Bxf6 {[%emt 0:00:09]} exf6 {[%emt 0:00:06]} 4. Nc3 {[%emt 0:00:38]} d5 {[%emt 0:00:10]} 5. Nf3 {[%emt 0:00:57]} Be6 {[%emt 0:00:11]} 6. h4 {[%emt 0:01:41]} h5 {[%emt 0:00:06]} 7. e3 {[%emt 0:01:13]} Nc6 {[%emt 0:04:09]} 8. Bd3 {[%emt 0:03:04]} g6 {[%emt 0:03:21]} 9. Ne2 {[%emt 0:02:30]} Bf7 {[%emt 0:04:22]} 10. c3 {[%emt 0:01:41]} Bd6 {[%emt 0:09:57]} 11. Qa4 {[%emt 0:02:59]} O-O {[%emt 0:00:23]} 12. Qc2 {[%emt 0:00:29]} Ne7 {[%emt 0:00:39]} 13. g3 {[%emt 0:03:37]} c6 {[%emt 0:01:35]} 14. Nf4 {[%emt 0:05:12]} a5 {[%emt 0:01:26]} 15. Nd2 {[%emt 0:08:51]} Qd7 {[%emt 0:03:14]} 16. c4 {[%emt 0:04:15]} a4 {[%emt 0:01:33]} 17. c5 {[%emt 0:02:58]} Bc7 {[%emt 0:00:20]} 18. O-O-O {[%emt 0:05:09]} b6 {[%emt 0:01:39]} 19. f3 {[%emt 0:02:20]} bxc5 {[%emt 0:02:00]} 20. dxc5 {[%emt 0:03:48]} Be5 {[%emt 0:10:17]} 21. Ne2 {[%emt 0:08:22]} Rfb8 {[%emt 0:00:29]} 22. Nd4 {[%emt 0:02:11]} Kh8 {[%emt 0:04:22]} 23. g4 {[%emt 0:00:29]} hxg4 {[%emt 0:00:42]} 24. fxg4 {[%emt 0:02:12]} fxg4 {[%emt 0:04:50]} 25. h5 {[%emt 0:05:59]} g5 {[%emt 0:02:07]} 26. Bg6 {[%emt 0:01:20]} Be6 {[%emt 0:00:09]} 27. Rdf1 {[%emt 0:03:56]} Rf8 {[%emt 0:07:09]} 28. Nb1 {[%emt 0:10:56]} f5 {[%emt 0:04:45]} 29. Nc3 {[%emt 0:02:32]} g3 {[%emt 0:01:57]} 30. Rfg1 {[%emt 0:00:53]} f4 {[%emt 0:01:24]} 31. Nf3 {[%emt 0:01:17]} Bf6 {[%emt 0:01:22]} 32. exf4 {[%emt 0:00:41]} gxf4 {[%emt 0:00:39]} 33. Ne2 {[%emt 0:00:50]} Bg4 {[%emt 0:01:49]} 34. Nh4 {[%emt 0:02:10]} Rab8 {[%emt 0:01:54]} 35. Nc3 {[%emt 0:00:39]} Bg5 {[%emt 0:02:13]} 36. Kb1 {[%emt 0:01:00]} Bxh4 {[%emt 0:01:30]} 37. Rxh4 {[%emt 0:00:29]} Bf5 {[%emt 0:00:05]} 38. Bxf5 {[%emt 0:00:49]} Qxf5 {[%emt 0:00:03]} 39. Qxf5 {[%emt 0:00:36]} Rxf5 {[%emt 0:00:06]} 40. Ne2 {[%emt 0:00:41]} Rbf8 {[%emt 0:00:34]} 41. Nd4 {[%emt 0:01:01]} f3 {[%emt 0:03:05]} 42. Nxf5 {[%emt 0:01:19]} f2 {[%emt 0:00:16]} 43. Rd1 {[%emt 0:01:08]} g2 {[%emt 0:01:48]} 44. Nxe7 {[%emt 0:00:37]} f1=Q {[%emt 0:00:35]} 45. Ng6+ {[%emt 0:00:36]} Kg8 {[%emt 0:00:26]} 46. Kc2 {[%emt 0:00:47]} Rf2+ {[%emt 0:00:24]} 47. Rd2 {[%emt 0:00:23]} Rxd2+ {[%emt 0:00:26]} 48. Kxd2 {[%emt 0:00:05]} g1=Q {[%emt 0:00:15]} 49. Rxa4 {[%emt 0:00:08]} Qd1+ {[%emt 0:00:16]} 0-1

[Event "28th Hit Open-A 2024"]
[Site "Nova Gorica"]
[Date "2024.01.27"]
[Round "3.32"]
[White "Mestek, Igor"]
[Black "Budai, Federico"]
[Result "1-0"]
[ECO "C45"]
[WhiteElo "2080"]
[BlackElo "1861"]
[Annotator "NA RC"]
[PlyCount "139"]
[EventDate "2024.01.22"]
[EventType "swiss"]
[EventCountry "SLO"]
[SourceTitle "playchess.com"]
[Source "ChessBase"]
[SourceQuality "1"]
[TimeControl "5400+30"]

1. e4 {[%emt 0:00:04]} e5 {[%emt 0:00:09]} 2. Nf3 {[%emt 0:00:08]} Nc6 {[%emt 0:00:17]} 3. d4 {[%emt 0:00:08]} exd4 {[%emt 0:00:07]} 4. Nxd4 {[%emt 0:00:06]} Bc5 {[%emt 0:00:12]} 5. Be3 {[%emt 0:00:36]} Qf6 {[%emt 0:00:32]} 6. c3 {[%emt 0:00:08]} Nge7 {[%emt 0:00:31]} 7. g3 {[%emt 0:00:20]} Bb6 {[%emt 0:03:16]} 8. Bg2 {[%emt 0:00:08]} d6 {[%emt 0:00:43]} 9. O-O {[%emt 0:00:13]} O-O {[%emt 0:02:21]} 10. Nb5 {[%emt 0:00:42]} Ba5 {[%emt 0:15:16]} 11. Nd2 {[%emt 0:02:39]} a6 {[%emt 0:08:58]} 12. Nd4 {[%emt 0:00:18]} Ne5 {[%emt 0:02:54]} 13. h3 {[%emt 0:00:59]} c5 {[%emt 0:07:47]} 14. Ne2 {[%emt 0:05:36]} Be6 {[%emt 0:06:31]} 15. b3 {[%emt 0:04:46]} N5c6 {[%emt 0:04:10]} 16. Qc2 {[%emt 0:12:23]} Bc7 {[%emt 0:12:40]} 17. Nf4 {[%emt 0:02:15]} Nc8 {[%emt 0:08:13]} 18. Rae1 {[%emt 0:06:47]} Nb6 {[%emt 0:01:44]} 19. Nd5 {[%emt 0:02:45]} Qd8 {[%emt 0:00:55]} 20. Nf3 {[%emt 0:07:28]} h6 {[%emt 0:02:35]} 21. Rd1 {[%emt 0:00:37]} Bxd5 {[%emt 0:03:36]} 22. exd5 {[%emt 0:00:35]} Ne7 {[%emt 0:00:13]} 23. c4 {[%emt 0:13:39]} Ng6 {[%emt 0:00:34]} 24. Bc1 {[%emt 0:02:27]} Nd7 {[%emt 0:02:12]} 25. Bb2 {[%emt 0:00:08]} Ba5 {[%emt 0:01:23]} 26. Nh2 {[%emt 0:04:48]} Qe8 {[%emt 0:06:32]} 27. Be4 {[%emt 0:01:06]} Ne7 {[%emt 0:00:28]} 28. Bh7+ {[%emt 0:01:53]} Kh8 {[%emt 0:00:09]} 29. Bd3 {[%emt 0:00:17]} f5 {[%emt 0:02:38]} 30. f4 {[%emt 0:02:44]} Qf7 {[%emt 0:00:56]} 31. Rf2 {[%emt 0:02:00]} Rfe8 {[%emt 0:05:02]} 32. Nf3 {[%emt 0:00:21]} Kg8 {[%emt 0:00:34]} 33. Nh4 {[%emt 0:00:43]} Rf8 {[%emt 0:01:20]} 34. Ba1 {[%emt 0:01:08]} Rae8 {[%emt 0:00:54]} 35. Qb2 {[%emt 0:02:07]} Qf6 {[%emt 0:00:50]} 36. Qc2 {[%emt 0:00:30]} Qf7 {[%emt 0:00:05]} 37. Re2 {[%emt 0:00:04]} g5 {[%emt 0:00:55]} 38. Qb2 {[%emt 0:04:53]} Qf6 {[%emt 0:00:38]} 39. Qa3 {[%emt 0:02:17]} Bc3 {[%emt 0:00:10]} 40. Bxc3 {[%emt 0:05:47]} Qxc3 {[%emt 0:00:02]} 41. Ng2 {[%emt 0:00:09]} Qg7 {[%emt 0:01:24]} 42. Kh2 {[%emt 0:01:44]} Rf7 {[%emt 0:00:22]} 43. Rde1 {[%emt 0:00:42]} Nf8 {[%emt 0:00:36]} 44. b4 {[%emt 0:01:53]} Rc8 {[%emt 0:00:29]} 45. Qb3 {[%emt 0:03:02]} Neg6 {[%emt 0:00:34]} 46. bxc5 {[%emt 0:00:18]} Rxc5 {[%emt 0:00:09]} 47. Qc2 {[%emt 0:03:44]} Ne7 {[%emt 0:00:47]} 48. Qb1 {[%emt 0:00:33]} Rc7 {[%emt 0:00:33]} 49. Qb6 {[%emt 0:00:19]} Nc8 {[%emt 0:00:28]} 50. Qb1 {[%emt 0:00:13]} Ne7 {[%emt 0:00:04]} 51. Rf1 {[%emt 0:01:17]} g4 {[%emt 0:00:31]} 52. h4 {[%emt 0:03:23]} h5 {[%emt 0:00:36]} 53. Rfe1 {[%emt 0:00:12]} b5 {[%emt 0:00:39]} 54. cxb5 {[%emt 0:00:20]} Nxd5 {[%emt 0:00:13]} 55. Qb3 {[%emt 0:01:17]} Qd4 {[%emt 0:01:00]} 56. Bb1 {[%emt 0:01:36]} Nc3 {[%emt 0:00:30]} 57. Re7 {[%emt 0:00:40]} d5 {[%emt 0:00:12]} 58. Rxf7 {[%emt 0:00:14]} Rxf7 {[%emt 0:00:08]} 59. bxa6 {[%emt 0:00:10]} Ne4 {[%emt 0:01:01]} 60. Bxe4 {[%emt 0:00:58]} dxe4 {[%emt 0:00:14]} 61. Rd1 {[%emt 0:00:30]} Qa7 {[%emt 0:00:53]} 62. Rd6 {[%emt 0:00:16]} Kh7 {[%emt 0:00:29]} 63. Qb6 {[%emt 0:00:49]} Qe7 {[%emt 0:00:22]} 64. Ne3 {[%emt 0:00:10]} Nd7 {[%emt 0:00:42]} 65. Rh6+ {[%emt 0:00:54]} Kg8 {[%emt 0:00:18]} 66. Qg6+ {[%emt 0:00:24]} Rg7 {[%emt 0:00:17]} 67. Qxh5 {[%emt 0:00:17]} Kf8 {[%emt 0:00:49]} 68. Rh8+ {[%emt 0:00:07]} Rg8 {[%emt 0:00:05]} 69. Qh6+ {[%emt 0:00:19]} Kf7 {[%emt 0:00:47]} 70. Rh7+ {[%emt 0:00:35]} 1-0

[Event "28th Hit Open-A 2024"]
[Site "Nova Gorica"]
[Date "2024.01.27"]
[Round "3.33"]
[White "Pagnutti, Lorenzo"]
[Black "Trybus, Daniel"]
[Result "0-1"]
[ECO "B03"]
[WhiteElo "1859"]
[BlackElo "2039"]
[Annotator "NA RC"]
[PlyCount "98"]
[EventDate "2024.01.22"]
[EventType "swiss"]
[EventCountry "SLO"]
[SourceTitle "playchess.com"]
[Source "ChessBase"]
[SourceQuality "1"]
[TimeControl "5400+30"]

1. e4 {[%emt 0:00:02]} Nf6 {[%emt 0:00:11]} 2. e5 {[%emt 0:00:26]} Nd5 {[%emt 0:00:06]} 3. c4 {[%emt 0:00:27]} Nb6 {[%emt 0:00:03]} 4. d4 {[%emt 0:00:24]} d6 {[%emt 0:00:06]} 5. f4 {[%emt 0:00:07]} Bf5 {[%emt 0:01:56]} 6. Nf3 {[%emt 0:01:43]} e6 {[%emt 0:00:16]} 7. Be2 {[%emt 0:00:36]} Be7 {[%emt 0:00:06]} 8. O-O {[%emt 0:00:15]} O-O {[%emt 0:01:17]} 9. Nc3 {[%emt 0:00:17]} d5 {[%emt 0:04:44]} 10. c5 {[%emt 0:00:23]} Nc4 {[%emt 0:00:02]} 11. b3 {[%emt 0:01:04]} Na5 {[%emt 0:00:01]} 12. Bd3 {[%emt 0:01:03]} Bxd3 {[%emt 0:00:37]} 13. Qxd3 {[%emt 0:00:09]} f5 {[%emt 0:02:25]} 14. exf6 {[%emt 0:00:38]} Bxf6 {[%emt 0:04:29]} 15. Bd2 {[%emt 0:00:55]} Nd7 {[%emt 0:05:48]} 16. Rae1 {[%emt 0:03:06]} Nc6 {[%emt 0:04:11]} 17. Rxe6 {[%emt 0:01:29]} Nxd4 {[%emt 0:04:17]} 18. Nxd4 {[%emt 0:01:03]} Nxc5 {[%emt 0:00:06]} 19. Nc6 {[%emt 0:09:45]} bxc6 {[%emt 0:01:00]} 20. Qe2 {[%emt 0:00:40]} Nxe6 {[%emt 0:01:37]} 21. Qxe6+ {[%emt 0:00:02]} Kh8 {[%emt 0:00:04]} 22. Qxc6 {[%emt 0:00:44]} Qd6 {[%emt 0:02:52]} 23. Qxd6 {[%emt 0:01:25]} cxd6 {[%emt 0:00:01]} 24. Nxd5 {[%emt 0:00:20]} Bd4+ {[%emt 0:00:03]} 25. Be3 {[%emt 0:02:08]} Bxe3+ {[%emt 0:00:19]} 26. Nxe3 {[%emt 0:00:02]} Rae8 {[%emt 0:00:11]} 27. Rf3 {[%emt 0:00:38]} Re4 {[%emt 0:00:43]} 28. f5 {[%emt 0:01:04]} g6 {[%emt 0:04:53]} 29. g4 {[%emt 0:00:41]} d5 {[%emt 0:00:30]} 30. h3 {[%emt 0:01:18]} d4 {[%emt 0:00:15]} 31. Nc4 {[%emt 0:00:15]} gxf5 {[%emt 0:00:06]} 32. Nd6 {[%emt 0:01:21]} Re2 {[%emt 0:00:39]} 33. Nxf5 {[%emt 0:01:06]} Rxa2 {[%emt 0:00:16]} 34. Rd3 {[%emt 0:00:21]} Rc8 {[%emt 0:00:16]} 35. Rd1 {[%emt 0:01:13]} d3 {[%emt 0:00:06]} 36. Ne3 {[%emt 0:00:34]} Rc3 {[%emt 0:00:38]} 37. b4 {[%emt 0:02:37]} Re2 {[%emt 0:03:09]} 38. Nd5 {[%emt 0:01:20]} Rb3 {[%emt 0:02:56]} 39. Kf1 {[%emt 0:00:29]} Rh2 {[%emt 0:00:20]} 40. Kg1 {[%emt 0:01:02]} Rhb2 {[%emt 0:00:26]} 41. Kf1 {[%emt 0:00:54]} Rb1 {[%emt 0:00:08]} 42. Ke1 {[%emt 0:00:18]} d2+ {[%emt 0:00:27]} 43. Ke2 {[%emt 0:00:08]} Rxd1 {[%emt 0:00:08]} 44. Kxd1 {[%emt 0:00:04]} Rxh3 {[%emt 0:00:05]} 45. Kxd2 {[%emt 0:00:14]} Kg7 {[%emt 0:00:22]} 46. Nf4 {[%emt 0:00:38]} Rh4 {[%emt 0:00:42]} 47. Ke3 {[%emt 0:02:50]} Rxg4 {[%emt 0:00:04]} 48. Kf3 {[%emt 0:00:08]} Rxf4+ {[%emt 0:00:34]} 49. Kxf4 {[%emt 0:00:06]} Kf6 {[%emt 0:00:03]} 0-1

[Event "28th Hit Open-A 2024"]
[Site "Nova Gorica"]
[Date "2024.01.27"]
[Round "3.34"]
[White "Kejzar, Petra"]
[Black "Tonel, Giulia"]
[Result "1-0"]
[ECO "D15"]
[WhiteElo "2025"]
[BlackElo "1851"]
[Annotator "NA RC"]
[PlyCount "29"]
[EventDate "2024.01.22"]
[EventType "swiss"]
[EventCountry "SLO"]
[SourceTitle "playchess.com"]
[Source "ChessBase"]
[SourceQuality "1"]
[TimeControl "5400+30"]

1. d4 {[%emt 0:00:02]} d5 {[%emt 0:00:21]} 2. c4 {[%emt 0:00:05]} c6 {[%emt 0:00:07]} 3. Nc3 {[%emt 0:00:18]} Nf6 {[%emt 0:00:16]} 4. Nf3 {[%emt 0:00:07]} dxc4 {[%emt 0:00:33]} 5. e3 {[%emt 0:01:08]} Bf5 {[%emt 0:07:55]} 6. Bxc4 {[%emt 0:00:31]} e6 {[%emt 0:00:16]} 7. O-O {[%emt 0:00:21]} Nbd7 {[%emt 0:01:26]} 8. h3 {[%emt 0:00:37]} h6 {[%emt 0:04:04]} 9. Qe2 {[%emt 0:01:53]} Nb6 {[%emt 0:04:41]} 10. Bb3 {[%emt 0:00:32]} Bb4 {[%emt 0:08:18]} 11. a3 {[%emt 0:01:58]} Be7 {[%emt 0:01:26]} 12. e4 {[%emt 0:01:24]} Bh7 {[%emt 0:01:23]} 13. Rd1 {[%emt 0:00:56]} O-O {[%emt 0:01:46]} 14. Bf4 {[%emt 0:00:53]} Bd6 {[%emt 0:07:38]} 15. Bxd6 {[%emt 0:01:02]} 1-0

[Event "28th Hit Open-A 2024"]
[Site "Nova Gorica"]
[Date "2024.01.27"]
[Round "3.35"]
[White "Cortese, Lina"]
[Black "Kekic, Urban"]
[Result "0-1"]
[ECO "D13"]
[WhiteElo "1582"]
[BlackElo "1885"]
[Annotator "NA RC COMBH"]
[PlyCount "64"]
[EventDate "2024.01.22"]
[EventType "swiss"]
[EventCountry "SLO"]
[SourceTitle "playchess.com"]
[Source "ChessBase"]
[SourceQuality "1"]
[TimeControl "5400+30"]

1. c4 {[%emt 0:00:02]} c6 {[%emt 0:00:18]} 2. Nc3 {[%emt 0:00:49]} d5 {[%emt 0:00:36]} 3. cxd5 {[%emt 0:00:18]} cxd5 {[%emt 0:00:07]} 4. d4 {[%emt 0:00:25]} Nc6 {[%emt 0:00:16]} 5. Nf3 {[%emt 0:00:47]} Nf6 {[%emt 0:00:12]} 6. g3 {[%emt 0:01:21]} Bf5 {[%emt 0:05:28]} 7. Bg2 {[%emt 0:01:28]} e6 {[%emt 0:01:41]} 8. a3 {[%emt 0:00:43]} Bd6 {[%emt 0:01:48]} 9. O-O {[%emt 0:00:34]} h6 {[%emt 0:01:50]} 10. b4 {[%emt 0:05:22]} O-O {[%emt 0:00:53]} 11. Bb2 {[%emt 0:04:32]} Rc8 {[%emt 0:04:17]} 12. Rc1 {[%emt 0:00:39]} Qe7 {[%emt 0:04:45]} 13. Qb3 {[%emt 0:07:14]} Rfd8 {[%emt 0:04:52]} 14. e3 {[%emt 0:01:53]} Nd7 {[%emt 0:07:43]} 15. Rfe1 {[%emt 0:01:16]} Nb6 {[%emt 0:02:01]} 16. Nd2 {[%emt 0:00:20]} Bh7 {[%emt 0:04:49]} 17. Na4 {[%emt 0:04:54]} Nd7 {[%emt 0:06:06]} 18. Nc5 {[%emt 0:02:05]} Nf6 {[%emt 0:13:25]} 19. e4 {[%emt 0:02:27]} dxe4 {[%emt 0:01:28]} 20. Ncxe4 {[%emt 0:01:12]} Nxe4 {[%emt 0:07:05]} 21. Nxe4 {[%emt 0:00:19]} Bxe4 {[%emt 0:03:56]} 22. Rxe4 {[%emt 0:00:35]} Qd7 {[%emt 0:02:41]} 23. Rg4 {[%emt 0:04:09]} Bf8 {[%emt 0:03:27]} 24. Qe3 {[%emt 0:02:23]} f5 {[%emt 0:04:49]} 25. Bxc6 {[%emt 0:02:45]} Rxc6 {[%emt 0:01:21]} 26. Rf4 {[%emt 0:02:42]} g5 {[%emt 0:03:27]} 27. Rxc6 {[%emt 0:00:41]} bxc6 {[%emt 0:01:14]} 28. Rf3 {[%emt 0:02:20]} g4 {[%emt 0:00:58]} 29. Rf4 {[%emt 0:00:50]} Bd6 {[%emt 0:00:29]} 30. d5 {[%emt 0:00:57]} Bxf4 {[%emt 0:01:14]} 31. Qxf4 {[%emt 0:00:48]} Qxd5 {[%emt 0:00:41]} 32. Qxh6 {[%emt 0:00:20]} Qd1+ {[%emt 0:00:10]} 0-1

[Event "28th Hit Open-A 2024"]
[Site "Nova Gorica"]
[Date "2024.01.27"]
[Round "3.36"]
[White "Racnik, Tone"]
[Black "Mihelj, Edvard"]
[Result "0-1"]
[ECO "C41"]
[WhiteElo "1849"]
[BlackElo "1618"]
[Annotator "NA RC COMBH"]
[PlyCount "86"]
[EventDate "2024.01.22"]
[EventType "swiss"]
[EventCountry "SLO"]
[SourceTitle "playchess.com"]
[Source "ChessBase"]
[SourceQuality "1"]
[TimeControl "5400+30"]

1. e4 {[%emt 0:00:10]} e5 {[%emt 0:00:44]} 2. Nf3 {[%emt 0:00:11]} d6 {[%emt 0:00:20]} 3. Bc4 {[%emt 0:00:19]} h6 {[%emt 0:00:30]} 4. c3 {[%emt 0:00:25]} Nf6 {[%emt 0:00:46]} 5. d3 {[%emt 0:00:38]} a6 {[%emt 0:01:38]} 6. Nbd2 {[%emt 0:01:25]} Be7 {[%emt 0:00:34]} 7. Nf1 {[%emt 0:02:21]} Nc6 {[%emt 0:00:39]} 8. Bb3 {[%emt 0:01:28]} b5 {[%emt 0:01:24]} 9. Ng3 {[%emt 0:01:13]} Na5 {[%emt 0:02:07]} 10. Bc2 {[%emt 0:00:33]} c6 {[%emt 0:00:55]} 11. O-O {[%emt 0:00:56]} Nh7 {[%emt 0:01:58]} 12. b4 {[%emt 0:05:32]} Nb7 {[%emt 0:00:25]} 13. d4 {[%emt 0:00:08]} Bg4 {[%emt 0:08:02]} 14. dxe5 {[%emt 0:05:46]} Bxf3 {[%emt 0:00:33]} 15. Qxf3 {[%emt 0:00:11]} dxe5 {[%emt 0:00:26]} 16. Bb3 {[%emt 0:02:55]} O-O {[%emt 0:00:53]} 17. Nf5 {[%emt 0:01:07]} Bg5 {[%emt 0:03:32]} 18. Qg3 {[%emt 0:04:39]} Qf6 {[%emt 0:01:24]} 19. h4 {[%emt 0:06:01]} Bxc1 {[%emt 0:01:06]} 20. Raxc1 {[%emt 0:00:06]} Nd6 {[%emt 0:01:19]} 21. Rce1 {[%emt 0:06:38]} Rae8 {[%emt 0:03:00]} 22. f4 {[%emt 0:04:52]} Nxf5 {[%emt 0:07:30]} 23. exf5 {[%emt 0:02:45]} e4 {[%emt 0:01:08]} 24. Qh3 {[%emt 0:01:43]} Re7 {[%emt 0:03:02]} 25. Re3 {[%emt 0:11:11]} Qd6 {[%emt 0:01:31]} 26. g4 {[%emt 0:00:48]} Kh8 {[%emt 0:01:16]} 27. g5 {[%emt 0:00:47]} h5 {[%emt 0:01:12]} 28. Qg3 {[%emt 0:05:53]} Rfe8 {[%emt 0:04:18]} 29. Rfe1 {[%emt 0:04:31]} c5 {[%emt 0:01:23]} 30. Bd1 {[%emt 0:01:21]} g6 {[%emt 0:02:09]} 31. f6 {[%emt 0:04:53]} Rd7 {[%emt 0:03:05]} 32. a3 {[%emt 0:06:20]} c4 {[%emt 0:01:18]} 33. Bf3 {[%emt 0:01:40]} Qb6 {[%emt 0:01:36]} 34. Qf2 {[%emt 0:00:12]} Red8 {[%emt 0:04:58]} 35. Rxe4 {[%emt 0:00:19]} Qb8 {[%emt 0:03:04]} 36. Qe2 {[%emt 0:04:37]} Nf8 {[%emt 0:01:07]} 37. Re8 {[%emt 0:03:06]} Qxf4 {[%emt 0:01:18]} 38. Rxd8 {[%emt 0:01:02]} Rxd8 {[%emt 0:00:11]} 39. Qe7 {[%emt 0:02:11]} Qg3+ {[%emt 0:02:56]} 40. Bg2 {[%emt 0:00:36]} Ne6 {[%emt 0:01:26]} 41. Rf1 {[%emt 0:00:26]} Kg8 {[%emt 0:01:55]} 42. Qa7 {[%emt 0:01:55]} Nf4 {[%emt 0:02:06]} 43. Qf2 {[%emt 0:00:26]} Nh3+ {[%emt 0:00:23]} 0-1

[Event "28th Hit Open-A 2024"]
[Site "Nova Gorica"]
[Date "2024.01.27"]
[Round "3.37"]
[White "Milicevic, Zoran"]
[Black "Vicic, Mark"]
[Result "0-1"]
[ECO "B15"]
[WhiteElo "1550"]
[BlackElo "1729"]
[Annotator "NA RC COMBH"]
[PlyCount "60"]
[EventDate "2024.01.22"]
[EventType "swiss"]
[EventCountry "SLO"]
[SourceTitle "playchess.com"]
[Source "ChessBase"]
[SourceQuality "1"]
[TimeControl "5400+30"]

1. e4 {[%emt 0:00:10]} c6 {[%emt 0:00:12]} 2. d4 {[%emt 0:00:42]} d5 {[%emt 0:00:06]} 3. Nc3 {[%emt 0:00:38]} dxe4 {[%emt 0:00:09]} 4. Nxe4 {[%emt 0:00:40]} Nf6 {[%emt 0:00:08]} 5. Nxf6+ {[%emt 0:01:20]} exf6 {[%emt 0:00:13]} 6. Nf3 {[%emt 0:00:45]} Bd6 {[%emt 0:00:19]} 7. Be2 {[%emt 0:01:19]} O-O {[%emt 0:00:18]} 8. O-O {[%emt 0:00:19]} Re8 {[%emt 0:01:17]} 9. c4 {[%emt 0:04:06]} Be6 {[%emt 0:01:14]} 10. b3 {[%emt 0:00:31]} Nd7 {[%emt 0:00:31]} 11. Bb2 {[%emt 0:00:30]} Nf8 {[%emt 0:00:32]} 12. d5 {[%emt 0:04:13]} cxd5 {[%emt 0:02:03]} 13. cxd5 {[%emt 0:00:10]} Bg4 {[%emt 0:02:14]} 14. Nd4 {[%emt 0:01:23]} Bxe2 {[%emt 0:00:58]} 15. Nxe2 {[%emt 0:00:12]} Qd7 {[%emt 0:00:54]} 16. Qd3 {[%emt 0:01:32]} Rad8 {[%emt 0:00:50]} 17. Rad1 {[%emt 0:00:31]} Ng6 {[%emt 0:00:56]} 18. f4 {[%emt 0:13:51]} Qg4 {[%emt 0:03:58]} 19. Rde1 {[%emt 0:22:31]} Bc5+ {[%emt 0:27:11]} 20. Kh1 {[%emt 0:02:50]} Re3 {[%emt 0:01:18]} 21. Qd1 {[%emt 0:01:47]} Nh4 {[%emt 0:26:40]} 22. Ng3 {[%emt 0:04:15]} Qd7 {[%emt 0:05:31]} 23. Rxe3 {[%emt 0:01:28]} Bxe3 {[%emt 0:01:48]} 24. Qd3 {[%emt 0:05:38]} Qxd5 {[%emt 0:01:57]} 25. Qxd5 {[%emt 0:00:24]} Rxd5 {[%emt 0:00:02]} 26. Re1 {[%emt 0:01:08]} Bc5 {[%emt 0:00:09]} 27. Re8+ {[%emt 0:07:10]} Bf8 {[%emt 0:00:01]} 28. h3 {[%emt 0:00:22]} Rd1+ {[%emt 0:00:42]} 29. Kh2 {[%emt 0:00:08]} Rd2 {[%emt 0:00:25]} 30. Ba3 {[%emt 0:00:41]} Nf3+ {[%emt 0:04:10]} 0-1

[Event "28th Hit Open-A 2024"]
[Site "Nova Gorica"]
[Date "2024.01.27"]
[Round "3.38"]
[White "Deschi, Leonardo Simone"]
[Black "Beber, Anja"]
[Result "0-1"]
[ECO "C55"]
[WhiteElo "1639"]
[BlackElo "1606"]
[Annotator "NA COMBH RC"]
[PlyCount "91"]
[EventDate "2024.01.22"]
[EventType "swiss"]
[EventCountry "SLO"]
[SourceTitle "playchess.com"]
[Source "ChessBase"]
[SourceQuality "1"]
[TimeControl "5400+30"]

1. e4 {[%emt 0:00:01]} e5 {[%emt 0:01:14]} 2. Nf3 {[%emt 0:00:06]} Nc6 {[%emt 0:00:12]} 3. Bc4 {[%emt 0:00:04]} Nf6 {[%emt 0:00:45]} 4. d3 {[%emt 0:01:28]} h6 {[%emt 0:00:39]} 5. c3 {[%emt 0:01:14]} d6 {[%emt 0:00:36]} 6. Nbd2 {[%emt 0:02:21]} g6 {[%emt 0:00:26]} 7. O-O {[%emt 0:07:24]} Bg7 {[%emt 0:01:47]} 8. b4 {[%emt 0:03:44]} O-O {[%emt 0:00:39]} 9. a4 {[%emt 0:22:10]} Qe7 {[%emt 0:02:40]} 10. a5 {[%emt 0:01:44]} a6 {[%emt 0:00:27]} 11. Nb3 {[%emt 0:11:31]} Be6 {[%emt 0:02:35]} 12. Re1 {[%emt 0:04:46]} Rad8 {[%emt 0:03:45]} 13. b5 {[%emt 0:05:59]} axb5 {[%emt 0:01:35]} 14. Bxb5 {[%emt 0:00:09]} Na7 {[%emt 0:01:14]} 15. Ba4 {[%emt 0:04:06]} Bd7 {[%emt 0:04:50]} 16. Be3 {[%emt 0:02:04]} Bxa4 {[%emt 0:01:03]} 17. Rxa4 {[%emt 0:06:26]} Qd7 {[%emt 0:02:57]} 18. Qa1 {[%emt 0:00:19]} Nc6 {[%emt 0:00:53]} 19. c4 {[%emt 0:02:06]} Ne7 {[%emt 0:02:31]} 20. Rb1 {[%emt 0:01:10]} Ra8 {[%emt 0:00:51]} 21. Nc1 {[%emt 0:04:39]} Rfb8 {[%emt 0:04:26]} 22. Ra2 {[%emt 0:02:30]} Qc6 {[%emt 0:02:33]} 23. Ne1 {[%emt 0:01:26]} Ng4 {[%emt 0:01:15]} 24. Bd2 {[%emt 0:01:27]} f5 {[%emt 0:04:16]} 25. h3 {[%emt 0:00:57]} Nf6 {[%emt 0:00:19]} 26. f3 {[%emt 0:00:45]} fxe4 {[%emt 0:01:11]} 27. fxe4 {[%emt 0:00:08]} Qc5+ {[%emt 0:00:21]} 28. Kh1 {[%emt 0:00:01]} Nh5 {[%emt 0:00:23]} 29. Ne2 {[%emt 0:00:53]} Rf8 {[%emt 0:02:11]} 30. Nf3 {[%emt 0:01:34]} Qf2 {[%emt 0:06:03]} 31. Be1 {[%emt 0:01:21]} Qa7 {[%emt 0:01:02]} 32. Nc3 {[%emt 0:02:09]} Nf4 {[%emt 0:02:27]} 33. Rd1 {[%emt 0:05:46]} Nxh3 {[%emt 0:00:54]} 34. Nb5 {[%emt 0:00:47]} Qc5 {[%emt 0:00:41]} 35. gxh3 {[%emt 0:01:48]} Rxf3 {[%emt 0:00:17]} 36. Kg2 {[%emt 0:00:57]} Raf8 {[%emt 0:00:52]} 37. Qb2 {[%emt 0:00:35]} Rf1 {[%emt 0:04:07]} 38. d4 {[%emt 0:00:28]} exd4 {[%emt 0:00:15]} 39. Qe2 {[%emt 0:00:49]} Qg5+ {[%emt 0:00:45]} 40. Qg4 {[%emt 0:00:24]} Qxg4+ {[%emt 0:01:30]} 41. hxg4 {[%emt 0:00:01]} R1f4 {[%emt 0:00:23]} 42. g5 {[%emt 0:01:07]} Rg4+ {[%emt 0:01:52]} 43. Kh3 {[%emt 0:00:26]} Rxg5 {[%emt 0:00:10]} 44. Nxc7 {[%emt 0:00:00]} Rf3+ {[%emt 0:00:09]} 45. Kh4 {[%emt 0:00:33]} Rg1 {[%emt 0:02:31] Check Result:-#3} 46. Nd5 {[%emt 0:00:31]} 0-1